[Event "African Championship"]
[Site "followchess.com"]
[Date "2021.05.26"]
[Round "8"]
[White "Talbi, Chafik"]
[Black "Masango, Spencer"]
[Result "0-1"]
[ECO "A39"]
[WhiteElo "2244"]
[BlackElo "2071"]
[PlyCount "100"]
[EventDate "2021.??.??"]
[TimeControl "7200+30"]
[WhiteClock "0:09:16"]
[BlackClock "0:00:47"]

1. d4 {[%emt 0:33:11]} Nf6 {[%emt 0:29:37]} 2. c4 {[%emt 0:00:23]} g6 {[%emt 0:
00:07]} 3. Nf3 {[%emt 0:00:10]} Bg7 {[%emt 0:00:07]} 4. g3 {[%emt 0:00:05]} O-O
{[%emt 0:00:15]} 5. Bg2 {[%emt 0:00:02]} c5 {[%emt 0:00:20]} 6. O-O {[%emt 0:
00:23]} Nc6 {[%emt 0:02:23]} 7. Nc3 {[%emt 0:01:35]} cxd4 {[%emt 0:01:10]} 8.
Nxd4 {[%emt 0:00:24]} Nxd4 {[%emt 0:00:07]} 9. Qxd4 {[%emt 0:00:07]} d6 {
[%emt 0:00:03]} 10. Qd2 {[%emt 0:05:40]} a6 {[%emt 0:01:01]} 11. b3 {[%emt 0:
00:10]} Rb8 {[%emt 0:00:19]} 12. a4 {[%emt 0:03:21]} Bd7 {[%emt 0:10:56]} 13.
Bb2 {[%emt 0:00:45]} Bc6 {[%emt 0:01:03]} 14. e4 {[%emt 0:00:55]} Nd7 {[%emt 0:
02:08]} 15. b4 {[%emt 0:05:29]} b5 {[%emt 0:02:11]} 16. cxb5 {[%emt 0:07:04]}
axb5 {[%emt 0:00:08]} 17. a5 {[%emt 0:12:41]} Ne5 {[%emt 0:00:13]} 18. Qc2 {
[%emt 0:07:31]} Qd7 {[%emt 0:11:01]} 19. Rac1 {[%emt 0:12:08]} Rfc8 {[%emt 0:
03:57]} 20. Qe2 {[%emt 0:05:18]} Nc4 {[%emt 0:11:48]} 21. Ba1 {[%emt 0:00:48]}
Bh6 {[%emt 0:00:20]} 22. Rcd1 {[%emt 0:01:30]} Bg7 {[%emt 0:07:07]} 23. Rfe1 {
[%emt 0:00:51]} e6 {[%emt 0:04:35]} 24. h4 {[%emt 0:05:48]} h5 {[%emt 0:00:16]}
25. Qa2 {[%emt 0:03:34]} Qa7 {[%emt 0:09:43]} 26. Ne2 {[%emt 0:01:45]} Bf8 {
[%emt 0:13:17]} 27. Qb3 {[%emt 0:04:03]} Bd7 {[%emt 0:01:52]} 28. Nf4 {[%emt 0:
01:10]} Qc7 {[%emt 0:04:26]} 29. Rc1 {[%emt 0:02:12]} Qd8 {[%emt 0:00:24]} 30.
Rcd1 {[%emt 0:04:24]} Qe7 {[%emt 0:01:47]} 31. Nd3 {[%emt 0:02:12]} e5 {
[%emt 0:01:33]} 32. Qa2 {[%emt 0:02:06]} Be6 {[%emt 0:00:44]} 33. Qe2 {[%emt 0:
01:13]} Rc6 {[%emt 0:01:43]} 34. f4 {[%emt 0:00:36]} Bg4 {[%emt 0:03:20]} 35.
Bf3 {[%emt 0:00:05]} Bxf3 {[%emt 0:00:08]} 36. Qxf3 {[%emt 0:00:04]} Rbc8 {
[%emt 0:00:49]} 37. fxe5 {[%emt 0:00:47]} dxe5 {[%emt 0:00:12]} 38. Kh2 {
[%emt 0:01:27]} Rf6 {[%emt 0:01:52]} 39. Qe2 {[%emt 0:01:24]} Bh6 {[%emt 0:00:
32]} 40. Kh1 {[%emt 0:00:00]} Qe6 {[%emt 0:00:00]} 41. Nc5 {[%emt 0:00:00]}
Qh3+ {[%emt 0:00:00]} 42. Qh2 {[%emt 0:00:00]} Qg4 {[%emt 0:00:00]} 43. Nd7 {
[%emt 0:00:00]} Re6 {[%emt 0:00:00]} 44. Nc5 {[%emt 0:00:00]} Ne3 {[%emt 0:00:
00]} 45. Nxe6 {[%emt 0:01:27]} Qf3+ {[%emt 0:00:15]} 46. Kg1 {[%emt 0:00:34]}
Rc2 {[%emt 0:00:57]} 47. Qxc2 {[%emt 0:06:56]} Qxg3+ {[%emt 0:00:12]} 48. Kh1 {
[%emt 0:00:03]} Nxc2 {[%emt 0:00:19]} 49. Rd8+ {[%emt 0:01:21]} Kh7 {[%emt 0:
00:11]} 50. Ng5+ {[%emt 0:00:31]} Bxg5 {[%emt 0:00:16]} 0-1

[Event "African Championship"]
[Site "followchess.com"]
[Date "2021.05.27"]
[Round "9"]
[White "Ajibola, Olanrewaju"]
[Black "Mwale, Joseph"]
[Result "0-1"]
[ECO "D04"]
[WhiteElo "2337"]
[BlackElo "2148"]
[PlyCount "52"]
[EventDate "2021.??.??"]
[TimeControl "7200+30"]
[WhiteClock "0:59:02"]
[BlackClock "0:34:27"]

1. d4 {[%emt 0:29:34]} d5 {[%emt 0:30:49]} 2. Nf3 {[%emt 0:00:07]} Nf6 {
[%emt 0:00:34]} 3. e3 {[%emt 0:00:08]} g6 {[%emt 0:01:59]} 4. Nbd2 {[%emt 0:01:
14]} Bg7 {[%emt 0:00:14]} 5. Be2 {[%emt 0:00:09]} O-O {[%emt 0:00:34]} 6. b4 {
[%emt 0:00:11]} a5 {[%emt 0:00:26]} 7. b5 {[%emt 0:00:11]} c5 {[%emt 0:00:20]}
8. bxc6 {[%emt 0:00:03]} bxc6 {[%emt 0:00:26]} 9. Ba3 {[%emt 0:00:38]} Nbd7 {
[%emt 0:00:17]} 10. O-O {[%emt 0:00:19]} Re8 {[%emt 0:00:32]} 11. c4 {[%emt 0:
04:24]} e5 {[%emt 0:05:57]} 12. cxd5 {[%emt 0:00:50]} Nxd5 {[%emt 0:06:42]} 13.
Rc1 {[%emt 0:03:00]} exd4 {[%emt 0:06:41]} 14. Nxd4 {[%emt 0:01:37]} c5 {
[%emt 0:00:21]} 15. Bxc5 {[%emt 0:04:54]} Nxc5 {[%emt 0:00:50]} 16. Rxc5 {
[%emt 0:00:05]} Nxe3 {[%emt 0:00:35]} 17. fxe3 {[%emt 0:38:25]} Bxd4 {[%emt 0:
00:12]} 18. exd4 {[%emt 0:00:10]} Qxd4+ {[%emt 0:00:06]} 19. Kh1 {[%emt 0:00:
08]} Qxc5 {[%emt 0:00:06]} 20. Bf3 {[%emt 0:00:32]} Ba6 {[%emt 0:01:55]} 21.
Ne4 {[%emt 0:00:31]} Qe5 {[%emt 0:04:04]} 22. Rf2 {[%emt 0:04:14]} Rad8 {
[%emt 0:00:24]} 23. Qg1 {[%emt 0:04:45]} Rd4 {[%emt 0:02:31]} 24. Nc3 {[%emt 0:
01:41]} Qe1 {[%emt 0:03:40]} 25. Rc2 {[%emt 0:00:41]} Qxg1+ {[%emt 0:03:27]}
26. Kxg1 {[%emt 0:00:02]} Rc8 {[%emt 0:00:16]} 0-1

[Event "African Championship"]
[Site "followchess.com"]
[Date "2021.05.27"]
[Round "9"]
[White "Amin, Bassem"]
[Black "Chipanga, Chiletso"]
[Result "1-0"]
[ECO "B13"]
[WhiteElo "2701"]
[BlackElo "2043"]
[PlyCount "63"]
[EventDate "2021.??.??"]
[TimeControl "7200+30"]
[WhiteClock "0:06:14"]
[BlackClock "0:49:50"]

1. e4 {[%emt 0:32:40]} c6 {[%emt 0:30:27]} 2. d4 {[%emt 0:02:18]} d5 {[%emt 0:
00:45]} 3. exd5 {[%emt 0:00:22]} cxd5 {[%emt 0:00:01]} 4. Bd3 {[%emt 0:00:20]}
Nc6 {[%emt 0:02:00]} 5. c3 {[%emt 0:00:02]} g6 {[%emt 0:00:35]} 6. Nf3 {
[%emt 0:00:53]} Bg7 {[%emt 0:00:16]} 7. O-O {[%emt 0:01:10]} Nf6 {[%emt 0:03:
54]} 8. Bf4 {[%emt 0:00:42]} O-O {[%emt 0:00:27]} 9. Re1 {[%emt 0:00:25]} Nh5 {
[%emt 0:02:36]} 10. Be3 {[%emt 0:00:27]} Qd6 {[%emt 0:02:46]} 11. Nbd2 {
[%emt 0:02:19]} f6 {[%emt 0:05:46]} 12. c4 {[%emt 0:01:58]} Nb4 {[%emt 0:00:39]
} 13. Bb1 {[%emt 0:02:39]} Nc6 {[%emt 0:07:32]} 14. cxd5 {[%emt 0:03:27]} Qxd5
{[%emt 0:00:06]} 15. a3 {[%emt 0:00:30]} Qd8 {[%emt 0:02:31]} 16. h3 {[%emt 0:
06:06]} f5 {[%emt 0:04:29]} 17. Ba2+ {[%emt 0:00:23]} Kh8 {[%emt 0:00:16]} 18.
d5 {[%emt 0:00:11]} Ne5 {[%emt 0:00:44]} 19. Nxe5 {[%emt 0:01:47]} Bxe5 {
[%emt 0:00:03]} 20. Nc4 {[%emt 0:04:40]} Bf6 {[%emt 0:02:39]} 21. Bh6 {[%emt 0:
01:41]} Ng7 {[%emt 0:06:02]} 22. d6 {[%emt 0:05:28]} e6 {[%emt 0:05:30]} 23.
Ne5 {[%emt 0:00:39]} Bxe5 {[%emt 0:03:58]} 24. Rxe5 {[%emt 0:00:09]} Qf6 {
[%emt 0:00:54]} 25. f4 {[%emt 0:01:21]} Bd7 {[%emt 0:06:51]} 26. Rc1 {[%emt 0:
01:43]} Bc6 {[%emt 0:09:22]} 27. b4 {[%emt 0:01:35]} a6 {[%emt 0:06:12]} 28.
Qd4 {[%emt 0:00:57]} Rfe8 {[%emt 0:08:56]} 29. d7 {[%emt 0:08:18]} Red8 {
[%emt 0:00:51]} 30. Bg5 {[%emt 0:00:17]} Rxd7 {[%emt 0:01:45]} 31. Qxd7 {
[%emt 0:00:15]} Qxe5 {[%emt 0:10:23]} 32. fxe5 {[%emt 0:00:28]} 1-0

[Event "African Championship"]
[Site "followchess.com"]
[Date "2021.05.27"]
[Round "9"]
[White "Barrish, Daniel"]
[Black "Osunfuyi, Abimbola"]
[Result "1-0"]
[ECO "D45"]
[WhiteElo "2306"]
[BlackElo "2246"]
[PlyCount "57"]
[EventDate "2021.??.??"]
[TimeControl "7200+30"]
[WhiteClock "0:30:08"]
[BlackClock "0:36:06"]

1. d4 d5 {[%emt 0:34:09]} 2. c4 {[%emt 0:33:12]} c6 {[%emt 0:00:05]} 3. Nc3 {
[%emt 0:00:15]} Nf6 {[%emt 0:00:08]} 4. Nf3 {[%emt 0:00:05]} e6 {[%emt 0:00:19]
} 5. e3 {[%emt 0:00:07]} Nbd7 {[%emt 0:00:11]} 6. Qc2 {[%emt 0:00:05]} Bd6 {
[%emt 0:00:39]} 7. Bd3 {[%emt 0:00:07]} dxc4 {[%emt 0:01:53]} 8. Bxc4 {[%emt 0:
00:27]} b5 {[%emt 0:00:07]} 9. Bd3 {[%emt 0:00:11]} Bb7 {[%emt 0:00:06]} 10.
O-O {[%emt 0:01:10]} O-O {[%emt 0:00:38]} 11. e4 {[%emt 0:00:18]} e5 {[%emt 0:
00:15]} 12. h3 {[%emt 0:00:28]} exd4 {[%emt 0:10:41]} 13. Nxd4 {[%emt 0:00:14]}
Ne5 {[%emt 0:00:12]} 14. Be2 {[%emt 0:16:53]} Re8 {[%emt 0:16:46]} 15. Nf5 {
[%emt 0:02:36]} Bc5 {[%emt 0:06:36]} 16. Bg5 {[%emt 0:02:50]} Re6 {[%emt 0:01:
46]} 17. Kh1 {[%emt 0:10:33]} h6 {[%emt 0:01:33]} 18. Bxf6 {[%emt 0:04:04]}
Rxf6 {[%emt 0:10:49]} 19. f4 {[%emt 0:01:34]} Ng6 {[%emt 0:01:36]} 20. e5 {
[%emt 0:02:01]} Re6 {[%emt 0:01:28]} 21. Nxh6+ {[%emt 0:03:57]} gxh6 22. f5
Rxe5 {[%emt 0:06:59]} 23. fxg6 {[%emt 0:00:46]} Qg5 {[%emt 0:00:26]} 24. gxf7+
{[%emt 0:05:19]} Kg7 {[%emt 0:00:29]} 25. Ne4 {[%emt 0:03:44]} Qe7 {[%emt 0:01:
16]} 26. Qc3 {[%emt 0:03:00]} b4 {[%emt 0:02:48]} 27. Qg3+ {[%emt 0:00:46]} Kh8
{[%emt 0:00:15]} 28. Qg6 {[%emt 0:03:06]} Qf8 {[%emt 0:01:42]} 29. Nxc5 {
[%emt 0:00:36]} 1-0

[Event "African Championship"]
[Site "followchess.com"]
[Date "2021.05.27"]
[Round "9"]
[White "Bellahcene, Bilel"]
[Black "Adly, Ahmed"]
[Result "0-1"]
[ECO "B19"]
[WhiteElo "2508"]
[BlackElo "2615"]
[PlyCount "132"]
[EventDate "2021.??.??"]
[TimeControl "7200+30"]
[WhiteClock "0:37:08"]
[BlackClock "0:01:16"]

1. e4 {[%emt 0:30:26]} c6 {[%emt 0:32:36]} 2. d4 {[%emt 0:00:05]} d5 {[%emt 0:
00:04]} 3. Nc3 {[%emt 0:00:02]} dxe4 {[%emt 0:00:32]} 4. Nxe4 {[%emt 0:00:04]}
Bf5 {[%emt 0:00:06]} 5. Ng3 {[%emt 0:00:04]} Bg6 {[%emt 0:00:05]} 6. h4 {
[%emt 0:00:01]} h6 {[%emt 0:00:17]} 7. Nf3 {[%emt 0:00:13]} Nd7 {[%emt 0:00:02]
} 8. Bd3 {[%emt 0:00:04]} Bxd3 {[%emt 0:00:34]} 9. Qxd3 {[%emt 0:00:03]} e6 {
[%emt 0:01:14]} 10. Bf4 {[%emt 0:00:12]} Qa5+ 11. Bd2 {[%emt 0:00:06]} Bb4 {
[%emt 0:09:10]} 12. Ne4 {[%emt 0:07:49]} Ngf6 {[%emt 0:00:11]} 13. Nd6+ {
[%emt 0:42:36]} Ke7 {[%emt 0:00:02]} 14. Nc4 {[%emt 0:00:07]} Bxd2+ {[%emt 0:
02:29]} 15. Nfxd2 {[%emt 0:00:37]} Qc7 {[%emt 0:03:26]} 16. Ne4 {[%emt 0:09:12]
} c5 {[%emt 0:06:57]} 17. Nxf6 {[%emt 0:08:37]} Nxf6 18. Qa3 {[%emt 0:04:19]}
Rhc8 {[%emt 0:14:06]} 19. Ne3 {[%emt 0:01:13]} Qd6 {[%emt 0:21:17]} 20. dxc5 {
[%emt 0:01:41]} Qxc5 {[%emt 0:01:23]} 21. Qxc5+ {[%emt 0:08:41]} Rxc5 {[%emt 0:
00:02]} 22. Ke2 {[%emt 0:00:01]} Rac8 {[%emt 0:01:27]} 23. Rhd1 {[%emt 0:00:19]
} Re5 {[%emt 0:05:48]} 24. c3 {[%emt 0:01:57]} Nd5 {[%emt 0:03:08]} 25. Kf3 {
[%emt 0:07:57]} Nxe3 {[%emt 0:01:47]} 26. fxe3 {[%emt 0:00:02]} g5 {[%emt 0:01:
03]} 27. hxg5 {[%emt 0:00:55]} Rf5+ {[%emt 0:00:02]} 28. Kg3 {[%emt 0:01:24]}
Rg8 {[%emt 0:02:11]} 29. Rd2 {[%emt 0:00:18]} Rfxg5+ {[%emt 0:02:33]} 30. Kh2 {
[%emt 0:00:05]} f5 {[%emt 0:00:05]} 31. Rf1 {[%emt 0:00:55]} Rg4 {[%emt 0:03:
23]} 32. Rf4 {[%emt 0:00:56]} h5 {[%emt 0:00:03]} 33. Rfd4 {[%emt 0:02:12]} Kf6
{[%emt 0:03:00]} 34. Rd7 {[%emt 0:00:21]} R8g7 {[%emt 0:00:09]} 35. Rxg7 {
[%emt 0:00:30]} Rxg7 {[%emt 0:00:03]} 36. Kg1 {[%emt 0:00:04]} h4 {[%emt 0:00:
54]} 37. Kf2 {[%emt 0:00:05]} Rh7 {[%emt 0:00:11]} 38. b3 {[%emt 0:02:30]} h3 {
[%emt 0:00:04]} 39. gxh3 {[%emt 0:00:10]} Rxh3 {[%emt 0:00:02]} 40. Rd7 {
[%emt 0:00:00]} Rh2+ {[%emt 0:00:00]} 41. Kg3 {[%emt 0:00:00]} Re2 {[%emt 0:00:
00]} 42. Kf3 {[%emt 0:00:00]} Rxa2 {[%emt 0:00:00]} 43. e4 {[%emt 0:00:00]} b6
{[%emt 0:00:00]} 44. exf5 {[%emt 0:00:00]} exf5 {[%emt 0:00:00]} 45. b4 {
[%emt 0:00:00]} Ke6 {[%emt 0:00:00]} 46. Rc7 {[%emt 0:00:55]} Kd6 {[%emt 0:00:
00]} 47. Rc8 {[%emt 0:00:08]} Kd7 {[%emt 0:00:00]} 48. Rc4 {[%emt 0:00:18]} Rh2
{[%emt 0:00:00]} 49. Kg3 {[%emt 0:01:24]} Rh7 {[%emt 0:00:00]} 50. b5 {[%emt 0:
01:44]} Kd6 {[%emt 0:00:00]} 51. Rc6+ {[%emt 0:02:07]} Ke5 {[%emt 0:00:00]} 52.
c4 {[%emt 0:00:01]} f4+ {[%emt 0:00:00]} 53. Kg4 {[%emt 0:00:28]} Rf7 {[%emt 0:
00:00]} 54. Kf3 {[%emt 0:00:42]} Kd4 {[%emt 0:00:00]} 55. Rc8 {[%emt 0:00:38]}
Kc3 {[%emt 0:00:00]} 56. Rc6 {[%emt 0:01:17]} Kb4 {[%emt 0:00:00]} 57. Rc8 {
[%emt 0:00:05]} Rf5 {[%emt 0:00:00]} 58. Ra8 {[%emt 0:01:01]} Kxc4 {[%emt 0:00:
00]} 59. Rxa7 {[%emt 0:00:05]} Kxb5 {[%emt 0:00:00]} 60. Ra1 Rf8 {[%emt 0:00:
00]} 61. Rb1+ {[%emt 0:00:37]} Kc5 {[%emt 0:00:00]} 62. Rc1+ {[%emt 0:00:04]}
Kd4 {[%emt 0:00:00]} 63. Rd1+ {[%emt 0:00:20]} Kc3 {[%emt 0:00:00]} 64. Rc1+ {
[%emt 0:00:10]} Kb2 {[%emt 0:00:00]} 65. Rc6 {[%emt 0:00:13]} Rb8 {[%emt 0:00:
00]} 66. Rh6 {[%emt 0:02:34]} b5 {[%emt 0:00:00]} 0-1

[Event "African Championship"]
[Site "followchess.com"]
[Date "2021.05.27"]
[Round "9"]
[White "Beukes, Dante M"]
[Black "Chimthere, Alfred Charles"]
[Result "1/2-1/2"]
[ECO "B10"]
[WhiteElo "2284"]
[BlackElo "2057"]
[PlyCount "131"]
[EventDate "2021.??.??"]
[TimeControl "7200+30"]
[WhiteClock "0:04:06"]
[BlackClock "0:01:32"]

1. e4 {[%emt 0:30:44]} c6 {[%emt 0:29:44]} 2. Nf3 {[%emt 0:00:19]} d5 {[%emt 0:
00:10]} 3. d3 {[%emt 0:00:04]} Bg4 {[%emt 0:06:12]} 4. h3 {[%emt 0:00:09]} dxe4
{[%emt 0:03:13]} 5. hxg4 {[%emt 0:01:29]} exf3 {[%emt 0:00:06]} 6. Qxf3 {
[%emt 0:00:17]} Nd7 {[%emt 0:01:38]} 7. Nc3 {[%emt 0:02:14]} e6 {[%emt 0:03:31]
} 8. Ne4 {[%emt 0:06:41]} Ne5 {[%emt 0:01:52]} 9. Qg3 {[%emt 0:05:18]} Ng6 {
[%emt 0:01:06]} 10. g5 {[%emt 0:04:03]} Qd5 {[%emt 0:09:14]} 11. Bd2 {[%emt 0:
14:26]} O-O-O {[%emt 0:04:01]} 12. c4 {[%emt 0:04:49]} Qe5 {[%emt 0:03:24]} 13.
Qxe5 {[%emt 0:05:57]} Nxe5 {[%emt 0:00:21]} 14. Rh3 {[%emt 0:00:04]} Ne7 {
[%emt 0:03:16]} 15. Bc3 {[%emt 0:02:02]} N7g6 {[%emt 0:01:54]} 16. O-O-O {
[%emt 0:01:40]} c5 {[%emt 0:01:29]} 17. d4 {[%emt 0:06:00]} cxd4 {[%emt 0:02:
08]} 18. Bxd4 {[%emt 0:00:48]} Nc6 {[%emt 0:00:18]} 19. Bc3 {[%emt 0:00:17]}
Rxd1+ {[%emt 0:04:56]} 20. Kxd1 {[%emt 0:00:16]} h6 {[%emt 0:00:14]} 21. gxh6 {
[%emt 0:10:49]} Rxh6 {[%emt 0:00:21]} 22. Rxh6 {[%emt 0:00:02]} gxh6 {[%emt 0:
00:19]} 23. Bf6 {[%emt 0:00:46]} Kd7 {[%emt 0:01:12]} 24. Be2 {[%emt 0:11:59]}
b6 {[%emt 0:03:37]} 25. g3 {[%emt 0:01:09]} Nge7 {[%emt 0:02:18]} 26. Bh5 {
[%emt 0:05:09]} Ng8 {[%emt 0:04:49]} 27. Bc3 {[%emt 0:01:48]} Ke8 {[%emt 0:12:
16]} 28. a3 {[%emt 0:01:46]} Be7 {[%emt 0:03:47]} 29. f4 {[%emt 0:04:36]} Nd8 {
[%emt 0:00:48]} 30. b4 {[%emt 0:01:48]} Kd7 {[%emt 0:01:01]} 31. Bf3 {[%emt 0:
01:30]} f5 {[%emt 0:00:48]} 32. Nf2 {[%emt 0:00:13]} Bf6 {[%emt 0:00:35]} 33.
Kc2 {[%emt 0:01:27]} Bxc3 {[%emt 0:00:24]} 34. Kxc3 {[%emt 0:00:05]} Nf6 {
[%emt 0:00:12]} 35. Kd4 {[%emt 0:01:03]} Ke7 {[%emt 0:12:57]} 36. Nd3 {[%emt 0:
01:15]} Nf7 {[%emt 0:01:23]} 37. c5 {[%emt 0:02:45]} bxc5+ {[%emt 0:02:43]} 38.
bxc5 {[%emt 0:00:13]} Nd7 {[%emt 0:01:59]} 39. Bh5 {[%emt 0:01:36]} Nd8 {
[%emt 0:00:28]} 40. Bf3 {[%emt 0:00:00]} Nf7 {[%emt 0:00:00]} 41. a4 {[%emt 0:
00:00]} a5 {[%emt 0:00:00]} 42. Nb2 {[%emt 0:00:00]} e5+ {[%emt 0:00:00]} 43.
fxe5 {[%emt 0:00:00]} Nfxe5 {[%emt 0:00:00]} 44. Bg2 {[%emt 0:00:00]} Ke6 {
[%emt 0:00:00]} 45. Bd5+ {[%emt 0:00:00]} Kf6 {[%emt 0:00:00]} 46. c6 {[%emt 0:
00:00]} Nb6 {[%emt 0:00:00]} 47. Kc5 {[%emt 0:00:00]} Nc8 {[%emt 0:00:00]} 48.
Nc4 {[%emt 0:00:00]} Nxc4 49. Bxc4 {[%emt 0:00:00]} Ke7 {[%emt 0:00:00]} 50.
Bd3 {[%emt 0:00:00]} Nd6 {[%emt 0:00:00]} 51. Kd5 {[%emt 0:00:28]} h5 {[%emt 0:
10:17]} 52. Ke5 {[%emt 0:02:43]} Nf7+ {[%emt 0:01:43]} 53. Kxf5 {[%emt 0:00:46]
} Kd6 {[%emt 0:00:09]} 54. Be4 {[%emt 0:01:46]} Nd8 {[%emt 0:01:15]} 55. Kg5 {
[%emt 0:01:30]} Ne6+ {[%emt 0:00:09]} 56. Kxh5 {[%emt 0:00:06]} Nc5 {[%emt 0:
00:04]} 57. Bc2 {[%emt 0:00:34]} Kxc6 {[%emt 0:00:27]} 58. Kg6 {[%emt 0:01:05]}
Kd5 {[%emt 0:00:29]} 59. Kf6 {[%emt 0:00:45]} Kd4 {[%emt 0:00:16]} 60. Ke7 {
[%emt 0:01:19]} Ke3 {[%emt 0:01:01]} 61. g4 {[%emt 0:00:57]} Kf4 {[%emt 0:00:
17]} 62. Kd6 {[%emt 0:00:12]} Nxa4 {[%emt 0:00:37]} 63. Bxa4 {[%emt 0:01:02]}
Kxg4 {[%emt 0:00:08]} 64. Kc5 {[%emt 0:00:03]} Kf4 {[%emt 0:00:38]} 65. Kb5 {
[%emt 0:00:03]} Ke5 {[%emt 0:00:10]} 66. Kxa5 {[%emt 0:00:33]} 1/2-1/2

[Event "African Championship"]
[Site "followchess.com"]
[Date "2021.05.27"]
[Round "9"]
[White "Hesham, Abdelrahman"]
[Black "Rakotomaharo, Fy Antenaina"]
[Result "1/2-1/2"]
[ECO "D87"]
[WhiteElo "2400"]
[BlackElo "2429"]
[PlyCount "142"]
[EventDate "2021.??.??"]
[TimeControl "7200+30"]
[WhiteClock "0:04:29"]
[BlackClock "0:04:40"]

1. d4 {[%emt 0:36:03]} Nf6 {[%emt 0:29:46]} 2. c4 {[%emt 0:00:06]} g6 {[%emt 0:
00:04]} 3. Nc3 {[%emt 0:00:04]} d5 {[%emt 0:00:04]} 4. cxd5 {[%emt 0:00:05]}
Nxd5 {[%emt 0:00:03]} 5. e4 {[%emt 0:00:05]} Nxc3 {[%emt 0:00:04]} 6. bxc3 {
[%emt 0:00:03]} Bg7 {[%emt 0:00:06]} 7. Bc4 {[%emt 0:00:20]} c5 {[%emt 0:00:12]
} 8. Ne2 {[%emt 0:00:05]} Nc6 {[%emt 0:00:09]} 9. Be3 {[%emt 0:00:08]} O-O {
[%emt 0:00:06]} 10. O-O {[%emt 0:00:03]} b6 {[%emt 0:00:40]} 11. h4 {[%emt 0:
00:06]} e6 {[%emt 0:07:29]} 12. h5 {[%emt 0:00:06]} Qh4 {[%emt 0:00:29]} 13.
hxg6 {[%emt 0:00:07]} hxg6 {[%emt 0:00:12]} 14. f3 {[%emt 0:00:06]} Rd8 {
[%emt 0:02:09]} 15. Qd2 {[%emt 0:00:37]} Qe7 {[%emt 0:02:23]} 16. Bg5 {[%emt 0:
18:32]} Bf6 {[%emt 0:08:04]} 17. Bxf6 {[%emt 0:00:17]} Qxf6 {[%emt 0:00:04]}
18. Rad1 {[%emt 0:00:40]} cxd4 {[%emt 0:02:46]} 19. cxd4 {[%emt 0:00:04]} Bb7 {
[%emt 0:00:02]} 20. Qe3 {[%emt 0:18:46]} Rac8 {[%emt 0:19:13]} 21. e5 {[%emt 0:
02:35]} Qe7 {[%emt 0:00:50]} 22. d5 {[%emt 0:01:11]} exd5 {[%emt 0:08:19]} 23.
Bxd5 {[%emt 0:00:22]} Ba6 {[%emt 0:02:56]} 24. Bxc6 {[%emt 0:16:44]} Rxc6 {
[%emt 0:00:23]} 25. Nd4 {[%emt 0:02:47]} Rc4 {[%emt 0:12:21]} 26. Rf2 {[%emt 0:
02:07]} Qc5 {[%emt 0:13:01]} 27. Rfd2 {[%emt 0:00:23]} Bb5 {[%emt 0:00:39]} 28.
e6 {[%emt 0:13:01]} fxe6 {[%emt 0:01:05]} 29. Qxe6+ {[%emt 0:01:38]} Kg7 {
[%emt 0:00:09]} 30. Qe3 {[%emt 0:02:18]} Re8 {[%emt 0:06:06]} 31. Qf2 {[%emt 0:
01:56]} Ba4 {[%emt 0:00:30]} 32. Rf1 {[%emt 0:07:12]} Rc1 {[%emt 0:03:28]} 33.
Rxc1 {[%emt 0:01:59]} Qxc1+ {[%emt 0:00:07]} 34. Kh2 {[%emt 0:00:02]} Bd7 {
[%emt 0:09:31]} 35. f4 {[%emt 0:04:22]} Rh8+ {[%emt 0:00:27]} 36. Kg3 {[%emt 0:
00:01]} Qh1 {[%emt 0:00:12]} 37. Kf3 {[%emt 0:00:30]} Rh3+ {[%emt 0:02:37]} 38.
Ke4 {[%emt 0:00:06]} Qb1+ {[%emt 0:00:02]} 39. Rc2 {[%emt 0:02:23]} Rc3 {
[%emt 0:01:52]} 40. Ke5 {[%emt 0:00:00]} Rc5+ {[%emt 0:00:00]} 41. Kd6 {
[%emt 0:00:00]} Rxc2 {[%emt 0:00:00]} 42. Nxc2 {[%emt 0:00:00]} Qb5 {[%emt 0:
00:00]} 43. Nd4 {[%emt 0:00:00]} Qa4 {[%emt 0:00:00]} 44. Qe3 {[%emt 0:00:00]}
Bg4 {[%emt 0:00:00]} 45. Qe5+ {[%emt 0:00:00]} Kg8 {[%emt 0:00:00]} 46. Nc6 {
[%emt 0:00:00]} Qxa2 {[%emt 0:00:00]} 47. Qf6 {[%emt 0:00:59]} Qd2+ {[%emt 0:
00:00]} 48. Kc7 {[%emt 0:00:14]} Qd7+ {[%emt 0:00:00]} 49. Kb8 {[%emt 0:00:08]}
Kh7 {[%emt 0:00:00]} 50. Ne7 {[%emt 0:01:48]} Qe6 {[%emt 0:00:00]} 51. Qxe6 {
[%emt 0:00:47]} Bxe6 {[%emt 0:00:00]} 52. Kxa7 {[%emt 0:00:02]} b5 {[%emt 0:00:
00]} 53. Nc6 {[%emt 0:00:02]} Bd5 {[%emt 0:00:00]} 54. Nb4 {[%emt 0:00:11]}
Bxg2 {[%emt 0:00:00]} 55. Kb6 {[%emt 0:00:03]} Bf1 {[%emt 0:00:25]} 56. Kc5 {
[%emt 0:00:08]} Kh6 {[%emt 0:01:01]} 57. Nd5 {[%emt 0:02:13]} Bd3 {[%emt 0:01:
56]} 58. Kd4 {[%emt 0:00:24]} Bf5 {[%emt 0:00:30]} 59. Kc5 {[%emt 0:00:19]} Bd3
{[%emt 0:00:18]} 60. Kd4 {[%emt 0:00:04]} Bc4 {[%emt 0:00:18]} 61. Ne3 {
[%emt 0:00:15]} Be2 {[%emt 0:00:52]} 62. Kc5 {[%emt 0:02:01]} Kh5 {[%emt 0:00:
34]} 63. Nd5 {[%emt 0:00:11]} Bc4 {[%emt 0:01:47]} 64. Ne7 {[%emt 0:00:41]} Kh6
{[%emt 0:00:20]} 65. Nc6 {[%emt 0:00:41]} Kg7 {[%emt 0:00:11]} 66. Nd4 {
[%emt 0:00:35]} Kf6 {[%emt 0:00:48]} 67. Kb4 {[%emt 0:00:05]} Ke7 {[%emt 0:00:
26]} 68. Kc5 {[%emt 0:00:05]} Bf1 {[%emt 0:00:21]} 69. Kd5 {[%emt 0:00:30]}
Bc4+ {[%emt 0:00:43]} 70. Kc5 {[%emt 0:00:04]} Kd7 {[%emt 0:00:02]} 71. f5 {
[%emt 0:00:20]} gxf5 {[%emt 0:01:49]} 1/2-1/2